Cogmind - Beta 12 @@@ ROGUE MODE // 2023.04.11 @ 19:34:40 Player: kaj Result: Destroyed by Y-45 Defender with Heavy Assault Rifle Performance ------------- Evolutions (2) 1000 Regions Visited (9) 1800 Robots Destroyed (79) 395 Value Destroyed (2326) 2326 Prototype IDs (26) 520 Alien Tech Used (0) 0 Bonus (529) 529 TOTAL SCORE: 6570 Bonus ------- High Alert Combat Kills 155 Follower Combat Kills 521 Aligned with FarCom 300 Friendly Fire -447 Cogmind --------- Core Integrity 0/550 Matter 180/300 Energy 140/140 System Corruption 0% Temperature Cool (27) Movement Rolling (145) Ox3 Location -8/Recycling Parts ------- > --- POWER (1) -------- Light Deuterium Engine > --- PROPULSION (4) --- Light Treads Light Treads Armored Huge Wheel > --- UTILITY (4) ------ Scrap Engine Huge Storage Unit Improved Targeting Computer > --- WEAPON (2) ------- Great Maul > --- INVENTORY (25) --- Improved Ion Engine Improved Ion Engine Light Nuclear Core F-cell Engine Titanium Leg Titanium Leg Armored Huge Wheel Armored Huge Wheel Improved Targeting Computer Grenade Launcher Grenade Launcher Rocket Launcher Rocket Launcher Rocket Launcher Rocket Launcher Peak State ------------ > --- POWER ------------ Improved Ion Engine > --- PROPULSION ------- Titanium Leg Titanium Leg Armored Huge Wheel > --- UTILITY ---------- Huge Storage Unit Improved Targeting Computer Hardened Heavy Armor Plating > --- WEAPON ----------- Assault Cannon Assault Cannon > --- INVENTORY -------- Improved Ion Engine Improved Ion Engine Improved Ion Engine Armored Huge Wheel Armored Huge Wheel Armored Huge Wheel High-capacity Storage Unit Trap Scanner Improved Targeting Computer Improved Targeting Computer Medium Reflective Plating Medium Reflective Plating Insulated Plating Heavy Assault Rifle AWS/Gauss Assault Cannon Grenade Launcher Grenade Launcher Rocket Launcher Great Maul Katana [Rating: 41] Favorites ----------- Power Ion Engine Engine Ion Engine Power Core Light Nuclear Core Propulsion Armored Wheel Treads Light Treads Leg Titanium Leg Wheel Armored Wheel Utility Huge Storage Unit Device Disposable Heat Sink Storage Huge Storage Unit Processor Improved Targeting Computer Protection Hardened Heavy Armor Plating Weapon Heavy Assault Rifle Energy Gun Medium Laser Ballistic Gun Heavy Assault Rifle Ballistic Cannon Assault Cannon Launcher Grenade Launcher Impact Weapon Great Maul Build | -11 -10 -10 -9 -9 -9 -8 -8 -8 -8 ------- Run | Jun Mat Min Mat Min Exi Min Mat Sto Rec Slots Evolved 4 | . . . 2 . . . 2 . . Power . | . . . . . . . . . . Propulsion 2 | . . . . . . . 2 . . Utility 2 | . . . 2 . . . . . . Weapon . | . . . . . . . . . . Parts Attached 89 | . 16 1 10 4 . 5 21 26 6 Power 9 | . 1 . . 1 . . 4 2 1 Engine 8 | . 1 . . 1 . . 4 1 1 Core 1 | . . . . . . . . 1 . Reactor . | . . . . . . . . . . Propulsion 17 | . 4 . . 1 . . 8 2 2 Treads 4 | . . . . . . . . 2 2 Leg 8 | . 2 . . . . . 6 . . Wheel 5 | . 2 . . 1 . . 2 . . Hover . | . . . . . . . . . . Flight . | . . . . . . . . . . Utility 22 | . 5 1 6 . . 1 4 3 2 Device 5 | . 2 . 1 . . 1 . . 1 Storage 4 | . 2 1 . . . . . 1 . Processor 3 | . 1 . 1 . . . . . 1 Hackware . | . . . . . . . . . . Protection 10 | . . . 4 . . . 4 2 . Artifact . | . . . . . . . . . . Weapon 41 | . 6 . 4 2 . 4 5 19 1 Energy Gun 2 | . 1 . . . . . . 1 . Energy Cannon . | . . . . . . . . . . Ballistic Gun 12 | . 3 . 2 2 . 2 2 1 . Ballistic Cannon 15 | . . . . . . 1 2 12 . Launcher 11 | . 2 . 2 . . 1 1 5 . Special Weapon . | . . . . . . . . . . Impact Weapon 1 | . . . . . . . . . 1 Slashing Weapon . | . . . . . . . . . . Piercing Weapon . | . . . . . . . . . . Special Melee Weapon . | . . . . . . . . . . Unidentified Prototypes 3 | . . . 1 . . . . 2 . Parts Lost 26 | . 2 . 2 1 . . 8 13 . Power 4 | . 1 . 1 . . . 1 1 . Propulsion 5 | . . . . 1 . . 3 1 . Utility 9 | . . . 1 . . . 1 7 . Weapon 8 | . 1 . . . . . 3 4 . Highest Loss Streak 8 | . 1 . 2 1 . . 4 8 . To Critical Strikes . | . . . . . . . . . . Average Slot Usage (%) 90 | . 97 100 94 93 100 100 91 74 54 Engine 10 | . 11 14 10 7 11 11 8 8 8 Treads 3 | . . . . . . . . 13 16 Leg 7 | . 25 . . . . . 20 2 . Wheel 15 | . 2 28 22 19 22 22 12 9 9 Device 1 | . 1 . 2 . . 9 4 . 9 Storage 11 | . 14 14 11 11 11 11 9 8 9 Processor 12 | . 11 14 17 22 22 12 9 7 2 Protection 6 | . . . 7 11 11 11 10 7 . Energy Gun 1 | . 7 . . . . . . . . Ballistic Gun 14 | . 12 28 20 22 22 19 11 . . Ballistic Cannon 4 | . . . . . . 2 5 16 . Launcher 1 | . 8 . 1 . . . . . . Naked Turns . | . . . . . . . . . . Heaviest Build 117 | 12 31 91 99 92 92 95 115 117 90 Greatest Support 68 | 20 24 24 24 24 24 24 68 28 28 Greatest Overweight (x) 7 | . 2 3 4 7 3 3 4 4 3 Average Overweight (x) 2 | . . 2 3 3 3 3 2 3 2 Largest Inventory Capacity 25 | 8 15 25 25 25 25 25 25 25 25 Average Capacity 22 | 8 11 20 25 25 25 25 25 24 25 Most Carried 25 | 6 15 19 25 25 25 25 25 25 25 Average Carried 20 | 6 10 16 21 23 24 25 23 22 20 Final Capacity 25 | 8 15 25 25 25 25 25 25 25 25 Final Carried 25 | 6 15 19 25 23 25 25 25 25 17 Scrap Engine Consumption 5 | . . . . . . . . . 5 Class Distribution -------------------- 83% | Mutant 16% | Scavenger-Mutant Dominant Class ---------------- Mutant | -10/Materials Mutant | -10/Mines Mutant | -9/Materials Mutant | -9/Mines Mutant | -9/Exiles Mutant | -8/Mines Mutant | -8/Materials Scavenger-Mutant | -8/Storage Mutant | -8/Recycling Resources | -11 -10 -10 -9 -9 -9 -8 -8 -8 -8 ----------- Run | Jun Mat Min Mat Min Exi Min Mat Sto Rec Matter Collected 2393 | 200 270 60 262 89 88 64 579 781 . Remotely . | . . . . . . . . . . Salvage Created 2195 | . 317 . 373 89 . 92 704 620 . Parts 155 | . 26 . 22 6 . 6 51 44 . Haulers Intercepted 1 | . . . . . . . . 1 . Recyclers Shooed 1 | . . . . . . . . 1 . Parts Field Recycled . | . . . . . . . . . . Retrieved Matter . | . . . . . . . . . . Parts Self-Destructed . | . . . . . . . . . . Prevented . | . . . . . . . . . . Kills | -11 -10 -10 -9 -9 -9 -8 -8 -8 -8 ------- Run | Jun Mat Min Mat Min Exi Min Mat Sto Rec Combat Hostiles Destroyed 66 | . 12 . 9 2 . 5 18 20 . Guns 29 | . 8 . 6 2 . 1 12 . . Cannons 14 | . . . . . . . 4 10 . AOE 23 | . 4 . 3 . . 4 2 10 . Classes Destroyed 13 | . 4 . 1 1 . . 3 4 . Worker 3 | . . . . . . . 2 1 . Builder 4 | . 2 . . . . . 2 . . Hauler 1 | . . . . . . . . 1 . Mechanic 1 | . . . . . . . . 1 . Operator 1 | . . . . . . . 1 . . Watcher 1 | . 1 . . . . . . . . Swarmer 20 | . 7 . . . . 3 7 3 . Grunt 33 | . 5 . 7 1 . 2 8 10 . Brawler 1 | . . . . . . . . 1 . Duelist 1 | . . . . 1 . . . . . Protector 2 | . . . . . . . . 2 . Sentry 9 | . . . 3 . . . 2 4 . Heavy 1 | . . . . . . . 1 . . Thug 1 | . . . 1 . . . . . . Best Kill Streak 11 | . 7 . 5 2 . 4 11 8 . Combat Bots Only 8 | . 3 . 5 2 . 4 7 8 . Max Kills in Single Turn 4 | . 2 . 2 1 . 3 4 3 . Gunslinging 1 | . 1 . . . . . . . . Exploded 3 | . 2 . 2 . . 3 2 3 . Melee . | . . . . . . . . . . Uniques/NPCs Destroyed . | . . . . . . . . . . Combat | -11 -10 -10 -9 -9 -9 -8 -8 -8 -8 -------- Run | Jun Mat Min Mat Min Exi Min Mat Sto Rec Damage Taken 4694 | . 525 . 435 415 . 146 1460 1592 121 Core 936 | . 134 . 44 150 . 43 162 354 49 Absorbed by Shields . | . . . . . . . . . . Redirected to Shielding 1 | . . . . . . . 1 . . Regen/Repaired (Parts) 260 | . . . . . . . . 260 . Core Remaining (%) 62 | 100 . 46 . . . 40 . . . Volleys Fired 176 | . 19 2 26 12 . 7 54 56 . Largest 2 | . 2 2 2 2 . 2 2 2 . Hottest 100 | . 70 46 46 46 . 43 67 100 . Shots Fired 323 | . 38 4 41 24 . 11 102 103 . Gun 171 | . 25 4 30 24 . 9 74 5 . Cannon 118 | . . . . . . . 27 91 . Launcher 34 | . 13 . 11 . . 2 1 7 . Special . | . . . . . . . . . . Kinetic 272 | . 13 4 30 24 . 9 101 91 . Thermal 17 | . 12 . . . . . . 5 . Explosive 34 | . 13 . 11 . . 2 1 7 . Electromagnetic . | . . . . . . . . . . Robot Hit Streak 21 | . 10 1 15 5 . 10 11 21 . Robot Miss Streak 5 | . 3 3 2 5 . 1 2 4 . Penetration Max . | . . . . . . . . . . Secondary Targets 4 | . 1 . 1 1 . . 1 . . Max Gunslinging Chain 1 | . 1 . 1 1 . . 1 . . Shots Hit Robots 204 | . 21 1 28 14 . 10 70 58 2 Core Hits 133 | . 20 . 21 4 . 12 42 34 . Critical Kills . | . . . . . . . . . . Critical Parts Destroyed . | . . . . . . . . . . Critical Strikes 5 | . 1 . . . . . 1 2 1 Burn 1 | . 1 . . . . . . . . Blast 3 | . . . . . . . 1 2 . Smash 1 | . . . . . . . . . 1 Melee Attacks 2 | . . . . . . . . . 2 Impact 2 | . . . . . . . . . 2 Slashing . | . . . . . . . . . . Piercing . | . . . . . . . . . . Sneak Attacks . | . . . . . . . . . . Combat Hostiles . | . . . . . . . . . . Follow-up Attacks . | . . . . . . . . . . Damage Inflicted 6102 | . 675 34 800 207 . 388 1537 2402 59 Guns 1819 | . 214 34 373 207 . 123 806 62 . Cannons 1798 | . . . . . . . 516 1282 . Explosions 2426 | . 461 . 427 . . 265 215 1058 . Melee 59 | . . . . . . . . . 59 Ramming . | . . . . . . . . . . Kinetic 3444 | . 103 34 373 207 . 123 1322 1282 . Thermal 173 | . 111 . . . . . . 62 . Explosive 2426 | . 461 . 427 . . 265 215 1058 . Electromagnetic . | . . . . . . . . . . Impact 59 | . . . . . . . . . 59 Slashing . | . . . . . . . . . . Piercing . | . . . . . . . . . . Highest Corruption 7 | . 2 2 7 7 7 7 . . . Average Corruption 3 | . 2 2 7 7 7 7 . . . Corruption Purged . | . . . . . . . . . . Corruption Blocked . | . . . . . . . . . . Effects 34 | . 9 6 . 4 11 4 . . . Message Errors 9 | . 3 . . 1 3 2 . . . Matter Fused 8 | . 1 2 . . 4 1 . . . Heat Flow Errors 3 | . . 1 . 1 1 . . . . Energy Discharges 7 | . 1 1 . 2 3 . . . . Data Loss (minor) 4 | . 2 2 . . . . . . . Misfires 2 | . 2 . . . . . . . . Weapon Failures 1 | . . . . . . 1 . . . Overload Shots . | . . . . . . . . . . Overflow Damage 80 | . 6 . . . . 2 23 49 . Projectiles 42 | . . . . . . . . 42 . Explosions 38 | . 6 . . . . 2 23 7 . Melee . | . . . . . . . . . . Knockbacks 10 | . . . . . . . . 10 . Impact . | . . . . . . . . . . Kinetic 10 | . . . . . . . . 10 . Secondary . | . . . . . . . . . . Self-Inflicted Damage 268 | . 135 . 36 . . . . 97 . Shots 8 | . 4 . 1 . . . . 3 . Rammed . | . . . . . . . . . . Targets Rammed . | . . . . . . . . . . Kicked . | . . . . . . . . . . Crushed . | . . . . . . . . . . Highest Temperature 596 | . 63 118 5 193 237 18 180 596 . Average Temperature 126 | . 24 68 3 50 126 9 61 184 . Received Heat Transfer 1350 | . 108 . 57 48 . 72 480 531 54 Effects 20 | . . . . . . . . 20 . Shutdowns 1 | . . . . . . . . 1 . Energy Bleed 1 | . . . . . . . . 1 . Interference 1 | . . . . . . . . 1 . Matter Decay 4 | . . . . . . . . 4 . Short Circuit 2 | . . . . . . . . 2 . Damage (minor) 2 | . . . . . . . . 2 . Damage (major) 6 | . . . . . . . . 6 . Damage (core) 3 | . . . . . . . . 3 . Siege Activations . | . . . . . . . . . . Robots Corrupted . | . . . . . . . . . . Combat Hostiles . | . . . . . . . . . . Parts Fried . | . . . . . . . . . . Impact Corruptions . | . . . . . . . . . . Robots Melted . | . . . . . . . . . . Combat Hostiles . | . . . . . . . . . . Parts Melted . | . . . . . . . . . . Heat Transferred 555 | . 407 . . . . . . 148 . Parts Sabotaged . | . . . . . . . . . . Parts Stolen . | . . . . . . . . . . Parts Stripped . | . . . . . . . . . . Power Chain Reactions . | . . . . . . . . . . Missiles Intercepted . | . . . . . . . . . . Alert | -11 -10 -10 -9 -9 -9 -8 -8 -8 -8 ------- Run | Jun Mat Min Mat Min Exi Min Mat Sto Rec Peak Influence 693 | . 237 83 517 213 . 139 350 693 270 Initial 270 | . . 75 31 193 . . 53 147 270 Average 231 | . 103 51 222 199 . 37 181 505 270 Maximum Alert Level 2 | . 1 . 2 1 . . 1 2 1 Low Security (%) 55 | 100 97 100 46 43 . 100 53 6 . Level 1 21 | . 2 . 37 56 . . 46 13 100 Level 2 22 | . . . 15 . . . . 79 . Level 3 . | . . . . . . . . . . Level 4 . | . . . . . . . . . . Level 5 . | . . . . . . . . . . High Security . | . . . . . . . . . . Max Security . | . . . . . . . . . . Squads Dispatched 13 | . 3 . 4 . . . 1 5 . Investigation 5 | . 2 . 1 . . . . 2 . Extermination . | . . . . . . . . . . Reinforcement 6 | . 1 . 3 . . . 1 1 . Assault 2 | . . . . . . . . 2 . Garrison . | . . . . . . . . . . Intercept . | . . . . . . . . . . Searches Triggered . | . . . . . . . . . . Construction Impeded . | . . . . . . . . . . Haulers Reinforced . | . . . . . . . . . . Active Scanning Responses . | . . . . . . . . . . Cargo Convoy Interrupts . | . . . . . . . . . . Stealth | -11 -10 -10 -9 -9 -9 -8 -8 -8 -8 --------- Run | Jun Mat Min Mat Min Exi Min Mat Sto Rec Distress Signals 4 | . 1 . 2 . . . 1 . . Communications Jammed . | . . . . . . . . . . Distress Signals . | . . . . . . . . . . Times Spotted 102 | . 19 2 15 2 . 6 24 33 1 Peak Tracking Total 8 | . 4 1 8 2 . 6 5 8 1 Tactical Retreats 5 | . . . 2 . . 1 2 . . Traps | -11 -10 -10 -9 -9 -9 -8 -8 -8 -8 ------- Run | Jun Mat Min Mat Min Exi Min Mat Sto Rec Traps Triggered 7 | . 3 . . . . . . 4 . Indirectly . | . . . . . . . . . . Trap Hack Attempts . | . . . . . . . . . . Triggered . | . . . . . . . . . . Disarmed . | . . . . . . . . . . Reprogrammed . | . . . . . . . . . . Reused . | . . . . . . . . . . Traps Extracted . | . . . . . . . . . . Installed . | . . . . . . . . . . Triggered . | . . . . . . . . . . Machines | -11 -10 -10 -9 -9 -9 -8 -8 -8 -8 ---------- Run | Jun Mat Min Mat Min Exi Min Mat Sto Rec Machines Disabled 9 | . . . 4 . . . . 5 . Max in Single Turn 1 | . . . 1 . . . . 1 . Machines Repaired . | . . . . . . . . . . Machines Sabotaged . | . . . . . . . . . . Overloaded Fab Kills . | . . . . . . . . . . Hacking | -11 -10 -10 -9 -9 -9 -8 -8 -8 -8 --------- Run | Jun Mat Min Mat Min Exi Min Mat Sto Rec Machines Accessed 25 | . 5 1 4 . 1 . 5 9 . Terminals 21 | . 5 . 3 . . . 5 8 . Fabricators . | . . . . . . . . . . Repair Stations 1 | . . . . . . . . 1 . Recycling Units . | . . . . . . . . . . Scanalyzers 1 | . . . 1 . . . . . . Garrison Access . | . . . . . . . . . . Total Hacks 54 | . 11 1 7 . 1 . 14 20 . Successful 20 | . 1 1 2 . 1 . 4 11 . Failed 34 | . 10 . 5 . . . 10 9 . Catastrophic 12 | . 5 . 2 . . . 4 1 . Database Lockouts . | . . . . . . . . . . Manual 35 | . 11 . 4 . 1 . 10 9 . Terminals 48 | . 11 . 6 . . . 14 17 . Fabricators . | . . . . . . . . . . Repair Stations 3 | . . . . . . . . 3 . Recycling Units . | . . . . . . . . . . Scanalyzers 1 | . . . 1 . . . . . . Garrison Access . | . . . . . . . . . . Terminal Hacks 16 | . 1 1 1 . 1 . 4 8 . Robot Analysis 1 | . . . . . . . 1 . . Open Door 6 | . . 1 . . . . . 5 . Branch Access Points 3 | . 1 . 1 . . . 1 . . Emergency Access Points 2 | . . . . . . . 1 1 . Terminal Index 1 | . . . . . . . . 1 . Zone Layout 2 | . . . . . . . 1 1 . EX-Prototype ID Bank 1 | . . . . . 1 . . . . Fabricator Hacks . | . . . . . . . . . . Repair Station Hacks 2 | . . . . . . . . 2 . Scan Component 1 | . . . . . . . . 1 . Repair 1 | . . . . . . . . 1 . Recycling Unit Hacks . | . . . . . . . . . . Scanalyzer 1 | . . . 1 . . . . . . Insert Component 1 | . . . 1 . . . . . . Garrison Access Hacks . | . . . . . . . . . . Unauthorized Hacks 1 | . . . . . . . . 1 . Terminals 1 | . . . . . . . . 1 . Assimilate 1 | . . . . . . . . 1 . Fabricators . | . . . . . . . . . . Repair Stations . | . . . . . . . . . . Recycling Units . | . . . . . . . . . . Scanalyzers . | . . . . . . . . . . Garrison Access . | . . . . . . . . . . Data Cores Recovered 1 | . . . . . . . 1 . . Used 1 | . . . . . . . 1 . . Hacking Detections 13 | . 4 . 1 . . . 4 4 . Full Trace Events 6 | . 2 . 1 . . . 1 2 . Feedback Events . | . . . . . . . . . . Feedback Blocked . | . . . . . . . . . . Robot Schematics Acquired . | . . . . . . . . . . Robots Built . | . . . . . . . . . . Authchips . | . . . . . . . . . . Time . | . . . . . . . . . . Total Robot Build Rating . | . . . . . . . . . . Part Schematics Acquired . | . . . . . . . . . . Parts Built . | . . . . . . . . . . Authchips . | . . . . . . . . . . Time . | . . . . . . . . . . Total Part Build Rating . | . . . . . . . . . . Parts Repaired 1 | . . . . . . . . 1 . Time 26 | . . . . . . . . 26 . Parts Recycled . | . . . . . . . . . . Recycled Matter . | . . . . . . . . . . Retrieved Matter . | . . . . . . . . . . Retrieved Components . | . . . . . . . . . . Parts Scanalyzed . | . . . . . . . . . . Part Schematics Acquired . | . . . . . . . . . . Parts Damaged . | . . . . . . . . . . Bothacking | -11 -10 -10 -9 -9 -9 -8 -8 -8 -8 ------------ Run | Jun Mat Min Mat Min Exi Min Mat Sto Rec Used RIF Installer . | . . . . . . . . . . Robots Hacked . | . . . . . . . . . . Non-combat . | . . . . . . . . . . Combat . | . . . . . . . . . . Robot Hacks Applied . | . . . . . . . . . . Relay Couplers Released . | . . . . . . . . . . Fabnet Peak Effective % . | . . . . . . . . . . Robots Rewired . | . . . . . . . . . . Allies Hacked . | . . . . . . . . . . Hacks Repelled . | . . . . . . . . . . Allies | -11 -10 -10 -9 -9 -9 -8 -8 -8 -8 -------- Run | Jun Mat Min Mat Min Exi Min Mat Sto Rec Total Allies 7 | . . 5 . . . . . 2 . Largest Group 5 | . . 5 5 1 . . . 2 . Highest-Rated Group 86 | . . 86 86 16 . . . 62 . Highest-Rated Ally 31 | . . 31 31 16 . . . 31 . Total Orders 17 | . . . 17 . . . . . . ROAM 1 | . . . 1 . . . . . . EXPLORE 16 | . . . 16 . . . . . . Ally Attacks 143 | . . 11 73 4 . . . 55 . Total Damage 1574 | . . 79 648 . . . . 847 . Kills 23 | . . 4 9 . . . . 10 . Allies Corrupted . | . . . . . . . . . . Allies Melted . | . . . . . . . . . . Intel | -11 -10 -10 -9 -9 -9 -8 -8 -8 -8 ------- Run | Jun Mat Min Mat Min Exi Min Mat Sto Rec Robot Analysis Total 1 | . . . . . . . 1 . . Derelict Logs Recovered 2 | . . 1 . 1 . . . . . Drone Launches 16 | . . . 16 . . . . . . Drone Recoveries . | . . . . . . . . . . Exploration | -11 -10 -10 -9 -9 -9 -8 -8 -8 -8 ------------- Run | Jun Mat Min Mat Min Exi Min Mat Sto Rec Turns Passed 5049 | 2 757 758 740 202 371 197 762 1171 89 Spaces Moved 2959 | 2 451 605 461 114 275 77 343 580 51 Core . | . . . . . . . . . . Treads . | . . . . . . . . . . Legs 469 | 2 392 . . . . . 75 . . Wheels 2490 | . 59 605 461 114 275 77 268 580 51 Hover . | . . . . . . . . . . Flight . | . . . . . . . . . . Fastest Speed 105 | 120 105 105 135 135 135 135 120 115 130 Average Speed 137 | 120 130 120 139 138 135 135 151 154 143 Slowest Speed 340 | 120 190 135 150 195 135 135 340 160 145 Overloaded Moves . | . . . . . . . . . . Propulsion Burnouts . | . . . . . . . . . . Robots Hopped . | . . . . . . . . . . Cave-ins Triggered 1 | . . . 1 . . . . . . Exploration Rate (%) 50 | 2 84 99 69 30 61 22 46 84 9 Regions Visited 9 Branch Regions 6 Pre-discovered Areas . | . . . . . . . . . . Known Exits Taken 7 | . 1 1 1 1 1 1 1 . . Unknown Exits Taken 2 | 1 . . . . . . . 1 . Scrap Searched 4 | . . 3 . . . 1 . . . Spaces Dug 23 | . . . 23 . . . . . . Terrain Destroyed 232 | . 82 . 50 . . 16 15 69 . Melee . | . . . . . . . . . . Projectile 14 | . . . . . . . 3 11 . AOE 218 | . 82 . 50 . . 16 12 58 . Terrain Rammed . | . . . . . . . . . . Walls Destroyed . | . . . . . . . . . . Machines Disabled . | . . . . . . . . . . Actions | -11 -10 -10 -9 -9 -9 -8 -8 -8 -8 --------- Run | Jun Mat Min Mat Min Exi Min Mat Sto Rec Total 3602 | 1 584 630 520 134 275 156 487 749 66 Wait 237 | . 63 17 . 3 . 66 40 48 . Move 2949 | 1 450 604 459 113 274 76 342 579 51 Hop . | . . . . . . . . . . Pick Up 83 | . 19 4 15 1 1 . 14 28 1 Fast Attach 25 | . 7 . 1 1 . 2 5 8 1 Attach 32 | . 2 . 5 3 . . 11 6 5 Detach 4 | . . . 3 . . . 1 . . Swap 32 | . 7 1 4 . . 3 5 12 . Drop 60 | . 17 2 6 1 . 2 15 11 6 Fire 176 | . 19 2 26 12 . 7 54 56 . Melee 2 | . . . . . . . . . 2 Ram . | . . . . . . . . . . Kick . | . . . . . . . . . . Crush . | . . . . . . . . . . Escape Stasis 1 | . . . 1 . . . . . . Rewire 1 | . . . . . . . . 1 . Trap . | . . . . . . . . . . Miscellaneous . | . . . . . . . . . . Route ------- -11/Junkyard -10/Materials (discovered 3 exits: *Mat x2 / *Min) -10/Mines (discovered 2 exits: *Mat x2) -9/Materials (discovered 2 exits: *Mat / *Min) -9/Mines -9/Exiles -8/Mines -8/Materials (discovered 3 exits: [*Fac] / *Sto x2) -8/Storage (discovered 2 exits: [*Fac] / [*Rec]) -8/Recycling History --------- Turn | Location | Event 1 | -11/Junkyard | Discovered new exit (range 1) 3 | -11/Junkyard | Entered Materials 118 | -10/Materials | Discovered new exit (range 15) 274 | -10/Materials | Discovered new exit (range 16) 291 | -10/Materials | Identified exit to Materials 328 | -10/Materials | Build established: Mutant 570 | -10/Materials | Core integrity fell below 50% 605 | -10/Materials | Identified exit to Mines 633 | -10/Materials | Discovered exit to Materials (range 16) 760 | -10/Materials | Entered Mines 776 | -10/Mines | Discovered exit to Materials (range 7) 941 | -10/Mines | Discovered exit to Materials (range 9) 948 | -10/Mines | Received a Rocket Launcher from a helpful Derelict 1237 | -10/Mines | Learned location of 1 exit from Materials 1302 | -10/Mines | Found the Drone Emporium 1320 | -10/Mines | Found Prototype Device 1445 | -10/Mines | Assisted by bots powering up and referring to "LRC-V3" 1518 | -10/Mines | Entered Materials 1518 | -9/Materials | Accompanied by 5 allies 1518 | -9/Materials | Evolved 2 slots: Utility x2 1519 | -9/Materials | Identified exit to Mines 1520 | -9/Materials | Identified Bomb Drone Bay 1523 | -9/Materials | Led the pair of lost Derelicts to an unsafe place 1562 | -9/Materials | Discovered new exit (range 45) 1719 | -9/Materials | Identified exit to Materials 2227 | -9/Materials | Crushed by falling debris 2258 | -9/Materials | Entered Mines 2258 | -9/Mines | Accompanied by 1 ally 2412 | -9/Mines | Identified exit to Exiles 2453 | -9/Mines | Deemed a non-threat by the Exiles lab entrance 2460 | -9/Mines | Entered Exiles 2493 | -9/Exiles | Met 8R-AWN 2516 | -9/Exiles | Met EX-HEX 2556 | -9/Exiles | Met EX-BIN 2573 | -9/Exiles | Aligned with FarCom system 2574 | -9/Exiles | Given EX-Vault access code 2605 | -9/Exiles | Opened EX-Vault 2616 | -9/Exiles | Found AWS/Gauss 2645 | -9/Exiles | Warned to stay clear of 0b10 Research branches 2682 | -9/Exiles | Met EX-DEC 2773 | -9/Exiles | Discovered new exit (range 10) 2830 | -9/Exiles | Identified exit to Mines 2831 | -9/Exiles | Left Exiles lab with AWS/Gauss 2831 | -9/Exiles | Entered Mines 2987 | -8/Mines | Core integrity fell below 50% 3015 | -8/Mines | Discovered exit to Materials (range 7) 3028 | -8/Mines | Entered Materials 3028 | -8/Materials | Evolved 2 slots: Propulsion x2 3187 | -8/Materials | Lost 4 parts (1p1n1u1w) 3548 | -8/Materials | Destroyed 7 combat bots 3623 | -8/Materials | Discovered new exit (range 5) 3665 | -8/Materials | Identified exit to Storage 3790 | -8/Materials | Entered Storage 3800 | -8/Storage | Met a pair of Derelict thieves 3913 | -8/Storage | Destroyed 8 combat bots 4006 | -8/Storage | Repaired Huge Storage Unit 4011 | -8/Storage | Lost 8 parts (1p1n3u3w) 4277 | -8/Storage | Build established: Scavenger-Mutant 4641 | -8/Storage | Used back door to open Recycling access 4641 | -8/Storage | Discovered new exit (range 5) 4703 | -8/Storage | Core integrity fell below 50% 4721 | -8/Storage | Core integrity fell below 20% 4745 | -8/Storage | Destroyed 7 combat bots 4755 | -8/Storage | Lost 5 parts (4u1w) 4841 | -8/Storage | Discovered new exit (range 16) 4961 | -8/Storage | Entered Recycling 4964 | -8/Recycling | Found Scrap Engine 5050 | -8/Recycling | Destroyed by Y-45 Defender with Heavy Assault Rifle Last Messages --------------- 04880_ Acquired Lgt. Treads. 04884_ Acquired Assault Cannon. A mysterious object appears at your location! LOCATION=UNKNOWN GOAL=ESCAPE 04961_ Receiving FarCom transmissions... 04964_ Acquired Scrap Engine. 04966_ Dropped Assault Cannon. 04967_ Scrap Engine consumes Assault Cannon. 04968_ Dropped Assault Cannon. 04969_ Scrap Engine consumes Assault Cannon. 05020_ Dropped Insulated Plating. 05021_ Scrap Engine consumes Insulated Plating. 05022_ Dropped Med. Reflective Plating. 05023_ Scrap Engine consumes Med. Reflective Plating. 05026_ Dropped Imp. Targeting Computer. 05032_ Acquired Imp. Targeting Computer. 05042_ Y-45 Defender springs to life. 05045_ Y-45 Defender suffers critical hit (Smash). 05050_ Critical hit (Burn: +37). Map ----- +----------------------------------------------------+ | ??????????????????????????????? | | ??????????????????????????????? | | ??????????????????????????????? | | ??????????????????????????????? | | ??????????????????????????????? | | ??????????????????????????????? | | ??????????????????????????????? | | ??????????????????????????????? | | ??????????????????????????????? | | ??????????????????????????????? | | ??????????????????????? ????? | | ?????????????????????? ????? | | ??????????????????????# Y???? | | ??????????????????????# "???? | | ??????????????????????# #???? | | ??????????????????????# #???? | | ??????????????????????# ##??? | | ??????????????????????# "???? | | ??????????????????????# Y???? | | ??????????????????????# "???? | | ??????????????????????# #???? | | ??????????????????????# #???? | | ??????????????????????# #???? | | ??????????????????????# #???? | | ??????????????????????# #???? | | ??????????????????????# @##??? | | ??????????????????????# u Y#??? | | ??????????????????????# ##??? | | ?????????????########## #???? | | ?????????????# # #???? | | ?????????????# # #???? | | ?????????????# # #???? | | ?????????????# # ###?? | | ?????????????# + ""#?? | | ????????????## # Y"#?? | | ????????????# # ""#?? | | ????????????## # ###?? | | ?????????????# # #???? | | ?????????????########## #???? | | ??????????????????????#####???? | | ??????????????????????????????? | | ??????????????????????????????? | | ??????????????????????????????? | | ??????????????????????????????? | | ??????????????????????????????? | | ??????????????????????????????? | | | | | | | | | +----------------------------------------------------+ Best States ------------- Heat Dissipation 31 Coolant Potential 50 Energy Generation 19 Energy Capacity 500 Matter Stores 300 Matter Capacity 300 Sight Range 16 Terrain Scan Density 10 Armor Coverage 600 Resistance: TH 15 Resistance: EM 15 Core Shielding 20 Evasion (%) 55 Targeting Accuracy 6 Item Schematics ----------------- None Robot Schematics ------------------ None Fabricated ------------ Nothing Alien Tech Used ----------------- None Achievements -------------- None Challenges ------------ None Game ------ Seed StructuralUtilityWheel Manual? 0 Play Time 00:55:11 Cumulative 129.1 hours Start 2023.04.10 @ 21:18:53 End 2023.04.11 @ 19:34:40 Sessions 2 Manual Loads 0 Difficulty Rogue Special Mode None Game No. 193 Rogue 193 Adventurer 0 Explorer 0 Win Type - Total 0 Types 0/0/0/0/0/0/0/0/0 Lore% 48 Gallery% 55 Achievement% 43 Wizard Run 0 Options --------- ASCII 0 Keyboard 0 Movement Mouse Keybinds 1 Fullscreen 2 Font 18/SmallcapsGlow Map View 76x50 Tactical HUD 1 Map Filters SATURATION(75) Filters LOW_CONTRAST(23,23,23) Steam 1 RUN: dd7841f6-8c67-43a7-9e02-443042acfdb2